lending/lending_fUSD_20250408
["ID","MTS","AMOUNT","RATE_DAILY","PERIOD"]
[357536322,1744131139039,-615.97,0.0003041,2]
[357536323,1744131139049,-630.49,0.0003041,2]
[357536324,1744131139060,-780.29,0.0003041,2]
[357536325,1744131139070,-500.0,0.0003041,2]
[357536326,1744131139083,-794.86,0.0003041,2]
[357536327,1744131139094,-918.03,0.0003041,2]
[357536328,1744131139105,-6319.24,0.0003041,2]
[357536329,1744131139115,-929.59,0.0003041,2]
[357536330,1744131139125,-1679.19,0.0003041,2]
[357536331,1744131139135,-500.0,0.0003041,2]
[357536332,1744131139145,-660.39,0.0003041,2]
[357536333,1744131139155,-500.0,0.0003041,2]
[357536334,1744131139165,-639.27,0.0003041,2]
[357536335,1744131139174,-500.0,0.0003041,2]
[357536336,1744131139185,-751.14,0.0003041,2]
[357536337,1744131139195,-725.42,0.0003041,2]
[357536338,1744131139205,-500.0,0.0003041,2]
[357536339,1744131139214,-500.0,0.0003041,2]
[357536340,1744131139224,-882.19,0.00030443,2]
[357536341,1744131139233,-500.0,0.00030684,2]
[357536342,1744131139242,-500.0,0.00030684,2]
[357536343,1744131139252,-521.99,0.00030684,2]
[357536344,1744131139262,-500.0,0.00030684,2]
[357536345,1744131139272,-1012.34,0.00030684,2]
[357536346,1744131139282,-500.0,0.00030684,2]
[357536347,1744131139293,-500.0,0.00030684,2]
[357536348,1744131139303,-500.0,0.00030684,2]
[357536349,1744131139313,-1008.75,0.00030684,2]
[357536350,1744131139324,-572.69,0.00030684,2]
[357536351,1744131139336,-938.36,0.00030684,2]
[357536352,1744131139346,-500.0,0.00030684,2]
[357536353,1744131139358,-500.0,0.00030684,2]
[357536354,1744131139368,-799.85,0.00030684,2]
[357536355,1744131139378,-168.35242505,0.00030684,2]
[357536356,1744131139388,-500.0,0.00030684,2]
[357536357,1744131139397,-500.0,0.00030684,2]
[357536358,1744131139407,-500.0,0.00030684,2]
[357536359,1744131139417,-500.0,0.00030684,2]
[357536360,1744131139427,-500.0,0.00030684,2]
[357536361,1744131139437,-500.0,0.00030684,2]
[357536362,1744131139447,-500.0,0.00030684,2]
[357536363,1744131139457,-936.4,0.00030684,2]
[357536364,1744131139468,-500.0,0.00030684,2]
[357536365,1744131139478,-500.0,0.00030684,2]
[357536366,1744131139488,-736.0,0.00030684,2]
[357536367,1744131139498,-500.0,0.00030684,2]
[357536368,1744131139508,-500.0,0.00030684,2]
[357536369,1744131139517,-550.93,0.00030684,2]
[357536370,1744131139527,-500.0,0.00030684,2]
[357536371,1744131139537,-500.0,0.00030684,2]
[357536372,1744131139547,-621.25,0.00030684,2]
[357536373,1744131139558,-500.0,0.00030684,2]
[357536374,1744131139568,-500.0,0.00030684,2]
[357536375,1744131139578,-500.0,0.00030684,2]
[357536376,1744131139587,-500.0,0.00030684,2]
[357536377,1744131139598,-1509.4,0.00030684,2]
[357536378,1744131139607,-768.18,0.00030684,2]
[357536379,1744131139617,-500.0,0.00030684,2]
[357536380,1744131139627,-734.29,0.00030684,2]
[357536381,1744131139636,-500.0,0.00030684,2]
[357536382,1744131139646,-500.0,0.00030684,2]
[357536383,1744131139656,-707.17,0.00030684,2]
[357536384,1744131139666,-500.0,0.00030684,2]
[357536385,1744131139675,-500.0,0.00030684,2]
[357536386,1744131139685,-509.41,0.00030684,2]
[357536387,1744131139694,-500.0,0.00030684,2]
[357536388,1744131139704,-500.0,0.00030684,2]
[357536389,1744131139714,-1220.84,0.00030684,2]
[357536390,1744131139723,-284.98703698,0.00030684,2]
[357536391,1744131139733,-500.0,0.00030684,2]
[357536392,1744131139742,-500.0,0.00030684,2]
[357536393,1744131139752,-492.46469486,0.00030684,2]
[357536394,1744131139762,-500.0,0.00030684,2]
[357536395,1744131139771,-500.0,0.00030684,2]
[357536396,1744131139781,-545.03,0.00030684,2]
[357536397,1744131139790,-500.0,0.00030684,2]
[357536398,1744131139800,-500.0,0.00030684,2]
[357536399,1744131139809,-500.0,0.00030684,2]
[357536400,1744131139818,-500.0,0.00030684,2]
[357536401,1744131139829,-1019.54,0.00030684,2]
[357536402,1744131139840,-538.21,0.00030684,2]
[357536403,1744131139849,-1644.68,0.00030684,2]
[357536404,1744131139859,-734.05,0.00030684,2]
[357536405,1744131139868,-500.0,0.00030684,2]
[357536406,1744131139878,-500.0,0.00030684,2]
[357536407,1744131139887,-1425.74,0.00030684,2]
[357536408,1744131139897,-500.0,0.00030684,2]
[357536409,1744131139907,-1187.81,0.00030684,2]
[357536410,1744131139916,-500.0,0.00030684,2]
[357536411,1744131139926,-500.0,0.00030684,2]
[357536412,1744131139935,-500.0,0.00030684,2]
[357536413,1744131139944,-500.0,0.00030684,2]
[357536414,1744131139954,-1273.1,0.00030684,2]
[357536415,1744131139963,-500.0,0.00030684,2]
[357536416,1744131139973,-500.0,0.00030684,2]
[357536417,1744131139982,-1048.09,0.00030684,2]
[357536418,1744131139991,-531.84,0.00030684,2]
[357536419,1744131140001,-424.56184851,0.00030684,2]
[357536420,1744131140010,-500.0,0.00030684,2]
[357536421,1744131140020,-686.22,0.00030684,2]
[357536422,1744131140029,-643.82,0.00030684,2]
[357536423,1744131140038,-589.26,0.00030684,2]
[357536424,1744131140047,-530.29,0.00030684,2]
[357536425,1744131140057,-1739.87,0.00030684,2]
[357536426,1744131140066,-913.6,0.00030684,2]
[357536427,1744131140076,-500.0,0.00030684,2]
[357536428,1744131140091,-500.0,0.00030684,2]
[357536429,1744131140100,-541.35,0.00030684,2]
[357536430,1744131140109,-500.0,0.00030684,2]
[357536431,1744131140119,-500.0,0.00030684,2]
[357536432,1744131140130,-524.83,0.00030684,2]
[357536433,1744131140139,-853.97,0.00030684,2]
[357536434,1744131140149,-500.0,0.00030684,2]
[357536435,1744131140159,-500.0,0.00030684,2]
[357536436,1744131140169,-1206.08,0.00030684,2]
[357536437,1744131140180,-500.0,0.00030684,2]
[357536438,1744131140190,-577.03191774,0.00030684,2]
[357536439,1744131140199,-839.17,0.00030684,2]
[357536440,1744131140209,-500.0,0.00030684,2]
[357536441,1744131140218,-500.0,0.00030684,2]
[357536442,1744131140227,-1079.35,0.00030684,2]
[357536443,1744131140237,-257.82649174,0.00030684,2]
[357536444,1744131140246,-646.6,0.00030684,2]
[357536445,1744131140256,-500.0,0.00030684,2]
[357536446,1744131140265,-1392.68,0.00030684,2]
[357536447,1744131140275,-1013.5,0.00030684,2]
[357536448,1744131140284,-1047.48,0.00030684,2]
[357536449,1744131140294,-500.0,0.00030684,2]
[357536450,1744131140304,-1138.94,0.00030684,2]
[357536451,1744131140314,-500.0,0.00030684,2]
[357536452,1744131140323,-500.0,0.00030684,2]
[357536453,1744131140615,-500.0,0.00030684,2]
[357536454,1744131140633,-571.65,0.00030684,2]
[357536455,1744131140643,-243.22141616,0.00030684,2]
[357536456,1744131140652,-494.25421357,0.00030684,2]
[357536457,1744131140662,-500.0,0.00030684,2]
[357536458,1744131140671,-985.93,0.00030684,2]
[357536459,1744131140681,-500.0,0.00030684,2]
[357536460,1744131140691,-500.0,0.00030684,2]
[357536461,1744131140701,-500.0,0.00030684,2]
[357536462,1744131140712,-500.0,0.00030684,2]
[357536463,1744131140722,-500.0,0.00030684,2]
[357536464,1744131140732,-893.75,0.00030684,2]
[357536465,1744131140742,-882.81,0.00030684,2]
[357536466,1744131140752,-635.65,0.00030684,2]
[357536467,1744131140762,-500.0,0.00030684,2]
[357536468,1744131140771,-554.86,0.00030684,2]
[357536469,1744131140781,-500.0,0.00030684,2]
[357536470,1744131140790,-1285.07,0.00030684,2]
[357536471,1744131140799,-500.0,0.00030684,2]
[357536472,1744131140809,-815.01,0.00030684,2]
[357536473,1744131140818,-2250.35,0.00030684,2]
[357536474,1744131140830,-828.56,0.00030684,2]
[357536475,1744131140840,-553.89,0.00030684,2]
[357536476,1744131140849,-554.97,0.00030684,2]
[357536477,1744131140859,-571.07,0.00030684,2]
[357536478,1744131140868,-500.0,0.00030684,2]
[357536479,1744131140878,-500.0,0.00030684,2]
[357536480,1744131140888,-635.52,0.00030684,2]
[357536481,1744131140898,-500.0,0.00030684,2]
[357536482,1744131140907,-729.33,0.00030684,2]
[357536483,1744131140917,-500.0,0.00030684,2]
[357536484,1744131140927,-1155.37,0.00030684,2]
[357536485,1744131140937,-500.0,0.00030684,2]
[357536486,1744131140947,-683.43,0.00030684,2]
[357536487,1744131140956,-659.52,0.00030684,2]
[357536488,1744131140966,-959.29,0.00030684,2]
[357536489,1744131140976,-1042.58,0.00030684,2]
[357536490,1744131140985,-500.0,0.00030684,2]
[357536491,1744131140996,-500.0,0.00030684,2]
[357536492,1744131141005,-502.74,0.00030684,2]
[357536493,1744131141014,-500.0,0.00030684,2]
[357536494,1744131141024,-500.0,0.00030684,2]
[357536495,1744131141033,-500.0,0.00030684,2]
[357536496,1744131141043,-500.0,0.00030684,2]
[357536497,1744131141052,-500.0,0.00030684,2]
[357536498,1744131141062,-651.5,0.00030684,2]
[357536499,1744131141071,-500.0,0.00030684,2]
[357536500,1744131141082,-594.23,0.00030684,2]
[357536501,1744131141093,-594.32,0.00030684,2]
[357536502,1744131141104,-764.58,0.00030684,2]
[357536503,1744131141113,-554.84,0.00030684,2]
[357536504,1744131141123,-1066.53,0.00030684,2]
[357536505,1744131141132,-500.0,0.00030684,2]
[357536506,1744131141142,-784.39,0.00030684,2]
[357536507,1744131141151,-508.06,0.00030684,2]
[357536508,1744131141162,-513.92,0.00030684,2]
[357536509,1744131141173,-500.0,0.00030684,2]
[357536510,1744131141183,-2000.0,0.00030684,2]
[357536511,1744131141193,-1465.9,0.00030684,2]
[357536512,1744131141202,-500.0,0.00030684,2]
[357536513,1744131141212,-568.34,0.00030684,2]
[357536514,1744131141221,-583.31,0.00030684,2]
[357536515,1744131141231,-627.5,0.00030684,2]
[357536516,1744131141241,-500.0,0.00030684,2]
[357536517,1744131141251,-500.0,0.00030684,2]
[357536518,1744131141260,-500.0,0.00030684,2]
[357536519,1744131141270,-500.0,0.00030684,2]
[357536520,1744131141281,-570.96,0.00030684,2]
[357536521,1744131141291,-500.0,0.00030684,2]
[357536522,1744131141300,-702.55,0.00030684,2]
[357536523,1744131141310,-591.32714575,0.00030684,2]
[357536524,1744131141320,-500.0,0.00030684,2]
[357536525,1744131141333,-500.0,0.00030684,2]
[357536526,1744131141343,-627.68,0.00030684,2]
[357536527,1744131141353,-354.19343059,0.00030684,2]
[357536528,1744131141363,-600.21,0.00030684,2]
[357536529,1744131141373,-717.93,0.00030684,2]
[357536530,1744131141383,-525.64,0.00030684,2]
[357536531,1744131141393,-683.46,0.00030684,2]
[357536532,1744131141402,-500.0,0.00030684,2]
[357536533,1744131141412,-500.0,0.00030684,2]
[357536534,1744131141422,-537.7,0.00030684,2]
[357536535,1744131141432,-500.0,0.00030684,2]
[357536536,1744131141441,-1354.7,0.00030684,2]
[357536537,1744131141451,-748.01,0.00030684,2]
[357536538,1744131141460,-1010.61,0.00030684,2]
[357536539,1744131141470,-500.0,0.00030684,2]
[357536540,1744131141480,-564.61,0.00030684,2]
[357536541,1744131141489,-500.0,0.00030684,2]
[357536542,1744131141499,-366.88614425,0.00030684,2]
[357536543,1744131141509,-500.0,0.00030684,2]
[357536544,1744131141519,-790.51,0.00030684,2]
[357536545,1744131141529,-500.0,0.00030684,2]
[357536546,1744131141539,-1476.66,0.00030684,2]
[357536547,1744131141548,-500.0,0.00030684,2]
[357536548,1744131141558,-500.0,0.00030684,2]
[357536549,1744131141567,-500.0,0.00030684,2]
[357536550,1744131141578,-655.26,0.00030684,2]
[357536551,1744131141588,-500.0,0.00030684,2]
[357536552,1744131141598,-737.15,0.00030684,2]
[357536553,1744131141607,-539.63,0.00030684,2]
[357536554,1744131141616,-500.0,0.00030684,2]
[357536555,1744131141626,-500.0,0.00030684,2]
[357536556,1744131141635,-703.81,0.00030684,2]
[357536557,1744131141645,-677.2,0.00030684,2]
[357536558,1744131141655,-959.99,0.00030684,2]
[357536559,1744131141665,-704.21,0.00030684,2]
[357536560,1744131141674,-641.96,0.00030684,2]
[357536561,1744131141684,-505.48,0.00030684,2]
[357536562,1744131141694,-932.66,0.00030684,2]
[357536563,1744131141704,-812.56,0.00030684,2]
[357536564,1744131141713,-1465.75,0.00030684,2]
[357536565,1744131141723,-580.15,0.00030684,2]
[357536566,1744131141733,-888.6,0.00030684,2]
[357536567,1744131141743,-889.0,0.00030684,2]
[357536568,1744131141754,-545.23,0.00030684,2]
[357536569,1744131141763,-2260.02,0.00030684,2]
[357536570,1744131141773,-794.37,0.00030684,2]
[357536571,1744131141783,-500.0,0.00030684,2]
[357536572,1744131141793,-613.35,0.00030684,2]
[357536573,1744131141803,-500.0,0.00030684,2]
[357536574,1744131141814,-567.81,0.00030684,2]
[357536575,1744131141824,-808.98,0.00030684,2]
[357536576,1744131141836,-845.46,0.00030684,2]
[357536577,1744131141845,-593.3,0.00030684,2]
[357536578,1744131141854,-500.0,0.00030684,2]
[357536579,1744131141863,-581.16,0.00030684,2]
[357536580,1744131141872,-500.0,0.00030684,2]
[357536581,1744131141882,-878.06,0.00030684,2]
[357536582,1744131141892,-500.0,0.00030684,2]
[357536583,1744131141901,-1056.72,0.00030684,2]
[357536584,1744131141910,-500.0,0.00030684,2]
[357536585,1744131141920,-1037.85,0.00030684,2]
[357536586,1744131141930,-624.4,0.00030684,2]
[357536587,1744131141939,-500.0,0.00030684,2]
[357536588,1744131141949,-500.0,0.00030684,2]
[357536589,1744131141958,-500.0,0.00030684,2]
[357536590,1744131141968,-547.36,0.00030684,2]
[357536591,1744131141977,-500.0,0.00030684,2]
[357536592,1744131141987,-1221.73,0.00030684,2]
[357536593,1744131141996,-541.77,0.00030684,2]
[357536594,1744131142005,-500.0,0.00030684,2]
[357536595,1744131142014,-1049.21,0.00030684,2]
[357536596,1744131142023,-500.0,0.00030684,2]
[357536597,1744131142033,-833.03,0.00030684,2]
[357536598,1744131142042,-500.0,0.00030684,2]
[357536599,1744131142052,-947.72,0.00030684,2]
[357536600,1744131142061,-915.59,0.00030684,2]
[357536601,1744131142071,-320.35986829,0.00030684,2]
[357536602,1744131142082,-2154.22,0.00030684,2]
[357536603,1744131142093,-500.0,0.00030684,2]
[357536604,1744131142103,-715.09,0.00030684,2]
[357536605,1744131142113,-681.07,0.00030684,2]
[357536606,1744131142122,-806.29,0.00030684,2]
[357536607,1744131142132,-500.0,0.00030684,2]
[357536608,1744131142142,-596.17,0.00030684,2]
[357536609,1744131142152,-500.0,0.00030684,2]
[357536610,1744131142161,-623.11,0.00030684,2]
[357536611,1744131142170,-643.21,0.00030684,2]
[357536612,1744131142181,-895.87,0.00030684,2]
[357536613,1744131142191,-591.63,0.00030684,2]
[357536614,1744131142201,-235.69661068,0.00030684,2]
[357536615,1744131142210,-840.88,0.00030684,2]
[357536616,1744131142220,-500.0,0.00030684,2]
[357536617,1744131142230,-915.65,0.00030684,2]
[357536618,1744131142239,-500.0,0.00030684,2]
[357536619,1744131142248,-2601.54,0.00030684,2]
[357536620,1744131142258,-6189.26,0.00030684,2]
[357536621,1744131142268,-1470.66,0.00030684,2]
[357536622,1744131142277,-500.0,0.00030684,2]
[357536623,1744131142287,-1161.33,0.00030684,2]
[357536624,1744131142296,-557.06,0.00030684,2]
[357536625,1744131142306,-500.0,0.00030684,2]
[357536626,1744131142315,-748.03,0.00030684,2]
[357536627,1744131142325,-1784.68,0.00030684,2]
[357536628,1744131142338,-500.0,0.00030684,2]
[357536629,1744131142347,-736.96,0.00030684,2]
[357536630,1744131142357,-500.0,0.00030684,2]
[357536631,1744131142366,-802.54,0.00030684,2]
[357536632,1744131142376,-500.0,0.00030684,2]
[357536633,1744131142385,-500.0,0.00030684,2]
[357536634,1744131142395,-528.16,0.00030684,2]
[357536635,1744131142404,-880.64,0.00030684,2]
[357536636,1744131142414,-1759.78,0.00030684,2]
[357536637,1744131142425,-878.89,0.00030684,2]
[357536638,1744131142434,-939.58,0.00030684,2]
[357536639,1744131142444,-735.03,0.00030684,2]
[357536640,1744131142453,-524.35,0.00030684,2]
[357536641,1744131142463,-500.0,0.00030684,2]
[357536642,1744131142472,-500.0,0.00030684,2]
[357536643,1744131142481,-1127.76,0.00030684,2]
[357536644,1744131142491,-500.0,0.00030684,2]
[357536645,1744131142500,-1017.57,0.00030684,2]
[357536646,1744131142509,-6178.64,0.00030684,2]
[357536647,1744131142518,-396.28,0.00030684,2]
[357536648,1744131142528,-513.55,0.00030684,2]
[357536649,1744131142537,-500.0,0.00030684,2]
[357536650,1744131142546,-950.17,0.00030684,2]
[357536651,1744131142556,-1089.76,0.00030684,2]
[357536652,1744131142565,-549.65,0.00030684,2]
[357536653,1744131142575,-578.6,0.00030684,2]
[357536654,1744131142586,-841.6,0.00030684,2]
[357536655,1744131142595,-1940.65,0.00030684,2]
[357536656,1744131142605,-671.05,0.00030684,2]
[357536657,1744131142614,-3839.98,0.00030684,2]
[357536658,1744131142623,-500.0,0.00030684,2]
[357536659,1744131142633,-500.0,0.00030684,2]
[357536660,1744131142642,-558.9,0.00030684,2]
[357536661,1744131142651,-641.86243969,0.00030684,2]
[357536662,1744131142660,-1739.52,0.00030684,2]
[357536663,1744131142669,-500.0,0.00030684,2]
[357536664,1744131142678,-500.0,0.00030684,2]
[357536665,1744131142688,-853.97,0.00030684,2]
[357536666,1744131142697,-727.58,0.00030684,2]
[357536667,1744131142707,-734.69,0.00030684,2]
[357536668,1744131142716,-1008.41,0.00030684,2]
[357536669,1744131142726,-990.1,0.00030684,2]
[357536670,1744131142735,-737.46,0.00030684,2]
[357536671,1744131142745,-500.0,0.00030684,2]
[357536672,1744131142754,-880.15,0.00030684,2]
[357536673,1744131142763,-500.0,0.00030684,2]
[357536674,1744131142773,-872.33,0.00030684,2]
[357536675,1744131142783,-825.98,0.00030684,2]
[357536676,1744131142792,-506.13,0.00030684,2]
[357536677,1744131142801,-2261.1,0.00030684,2]
[357536678,1744131142811,-500.0,0.00030684,2]
[357536679,1744131142820,-2351.91,0.00030684,2]
[357536680,1744131142832,-1830.5,0.00030684,2]
[357536681,1744131142842,-500.0,0.00030684,2]
[357536682,1744131142851,-727.88,0.00030684,2]
[357536683,1744131142861,-986.07,0.00030684,2]
[357536684,1744131142871,-665.51,0.00030684,2]
[357536685,1744131142880,-1859.52,0.00030684,2]
[357536686,1744131142890,-593.3,0.00030684,2]
[357536687,1744131142900,-500.0,0.00030684,2]
[357536688,1744131142910,-1483.68,0.00030684,2]
[357536689,1744131142919,-4169.04,0.00030684,2]
[357536690,1744131142929,-1258.57,0.00030684,2]
[357536691,1744131142938,-201.50527464,0.00030684,2]
[357536692,1744131142948,-524.58,0.00030684,2]
[357536693,1744131142958,-500.0,0.00030684,2]
[357536694,1744131142967,-646.63,0.00030684,2]
[357536695,1744131142977,-200.3145503,0.00030684,2]
[357536696,1744131143071,-808.53,0.00030684,2]
[357536697,1744131143083,-1146.51,0.00030684,2]
[357536698,1744131143093,-535.91,0.00030684,2]
[357536699,1744131143105,-24279.06,0.00030684,2]
[357536700,1744131143115,-590.02109646,0.00030684,2]
[357536701,1744131143124,-500.0,0.00030684,2]
[357536702,1744131143135,-500.0,0.00030684,2]
[357536703,1744131143144,-500.0,0.00030684,2]
[357536704,1744131143155,-632.96,0.00030684,2]
[357536705,1744131143165,-1842.22,0.00030684,2]
[357536706,1744131143175,-500.0,0.00030684,2]
[357536707,1744131143186,-892.34,0.00030684,2]
[357536708,1744131143198,-575.39,0.00030684,2]
[357536709,1744131143208,-735.43,0.00030684,2]
[357536710,1744131143218,-921.97,0.00030684,2]
[357536711,1744131143227,-271.65546391,0.00030684,2]
[357536712,1744131143238,-1216.92,0.00030684,2]
[357536713,1744131143247,-589.43,0.00030684,2]
[357536714,1744131143257,-500.0,0.00030684,2]
[357536715,1744131143266,-500.0,0.00030684,2]
[357536716,1744131143276,-500.0,0.00030684,2]
[357536717,1744131143286,-646.32,0.00030684,2]
[357536718,1744131143297,-1299.3,0.00030684,2]
[357536719,1744131143308,-616.22,0.00030684,2]
[357536720,1744131143317,-4391.56,0.00030684,2]
[357536721,1744131143326,-735.03,0.00030684,2]
[357536722,1744131143342,-830.9,0.00030684,2]
[357536723,1744131143351,-573.44,0.00030684,2]
[357536724,1744131143361,-542.44,0.00030684,2]
[357536725,1744131143371,-1398.27,0.00030684,2]
[357536726,1744131143380,-500.0,0.00030684,2]
[357536727,1744131143391,-500.0,0.00030684,2]
[357536728,1744131143402,-763.62,0.00030684,2]
[357536729,1744131143412,-745.57,0.00030684,2]
[357536730,1744131143421,-500.0,0.00030684,2]
[357536731,1744131143431,-1043.21,0.00030684,2]
[357536732,1744131143441,-812.8,0.00030684,2]
[357536733,1744131143450,-500.0,0.00030684,2]
[357536734,1744131143461,-836.32,0.00030684,2]
[357536735,1744131143471,-813.0,0.00030684,2]
[357536736,1744131143481,-500.0,0.00030684,2]
[357536737,1744131143490,-500.0,0.00030684,2]
[357536738,1744131143500,-684.15,0.00030684,2]
[357536739,1744131143510,-1564.46,0.00030684,2]
[357536740,1744131143519,-984.76,0.00030684,2]
[357536741,1744131143529,-615.97,0.00030684,2]
[357536742,1744131143539,-630.49,0.00030684,2]
[357536743,1744131143548,-500.0,0.00030684,2]
[357536744,1744131143558,-780.29,0.00030684,2]
[357536745,1744131143567,-794.86,0.00030684,2]
[357536746,1744131143576,-918.03,0.00030684,2]
[357536747,1744131143589,-6319.24,0.00030684,2]
[357536748,1744131143599,-929.59,0.00030684,2]
[357536749,1744131143609,-1679.19,0.00030684,2]
[357536750,1744131143618,-500.0,0.00030684,2]
[357536751,1744131143628,-660.39,0.00030684,2]
[357536752,1744131143637,-500.0,0.00030684,2]
[357536753,1744131143646,-639.27,0.00030684,2]
[357536754,1744131143655,-500.0,0.00030684,2]
[357536755,1744131143664,-751.14,0.00030684,2]
[357536756,1744131143673,-725.42,0.00030684,2]
[357536757,1744131143682,-500.0,0.00030684,2]
[357536758,1744131143692,-500.0,0.00030684,2]
[357536759,1744131143701,-1282.07,0.00030869,2]
[357536760,1744131143709,-169.37,0.00030869,2]
[357536761,1744131143718,-150.0,0.00030869,2]
[357536762,1744131143727,-150.0,0.00030869,2]
[357536763,1744131143736,-150.0,0.00030869,2]
[357536764,1744131143746,-150.0,0.00030869,2]
[357536765,1744131143756,-445.0,0.00030869,2]
[357536766,1744131143765,-445.0,0.00030869,2]
[357536767,1744131143775,-150.0,0.00030869,2]
[357536768,1744131143785,-445.0,0.00030869,2]
[357536769,1744131143794,-150.0,0.00030869,2]
[357536770,1744131143804,-348.14,0.00030869,2]
[357536771,1744131143813,-700.0,0.000309,11]
[357536772,1744131143822,-103391.7430348,0.00030937,2]
[357536773,1744131143833,-4810.556668,0.00030937,2]
[357536774,1744131143842,-500.0,0.00030958,2]
[357536775,1744131143852,-500.0,0.00030958,2]
[357536776,1744131143861,-521.99,0.00030958,2]
[357536777,1744131143870,-500.0,0.00030958,2]
[357536778,1744131143879,-1012.34,0.00030958,2]
[357536779,1744131143888,-500.0,0.00030958,2]
[357536780,1744131143898,-500.0,0.00030958,2]
[357536781,1744131143907,-500.0,0.00030958,2]
[357536782,1744131143916,-1008.75,0.00030958,2]
[357536783,1744131143926,-572.69,0.00030958,2]
[357536784,1744131143935,-938.36,0.00030958,2]
[357536785,1744131143944,-500.0,0.00030958,2]
[357536786,1744131143953,-540.51542079,0.00030958,2]
[357536787,1744131143962,-799.85,0.00030958,2]
[357536788,1744131143971,-500.0,0.00030958,2]
[357536789,1744131143980,-500.0,0.00030958,2]
[357536790,1744131143990,-197.30893397,0.00030958,2]
[357536791,1744131143999,-500.0,0.00030958,2]
[357536792,1744131144008,-398.24900405,0.00030958,2]
[357536793,1744131144018,-500.0,0.00030958,2]
[357536794,1744131144027,-500.0,0.00030958,2]
[357536795,1744131144037,-936.4,0.00030958,2]
[357536796,1744131144046,-500.0,0.00030958,2]
[357536797,1744131144055,-313.22688506,0.00030958,2]
[357536798,1744131144065,-736.0,0.00030958,2]
[357536799,1744131144075,-500.0,0.00030958,2]
[357536800,1744131144086,-500.0,0.00030958,2]
[357536801,1744131144098,-550.93,0.00030958,2]
[357536802,1744131144107,-500.0,0.00030958,2]
[357536803,1744131144116,-500.0,0.00030958,2]
[357536804,1744131144126,-621.25,0.00030958,2]
[357536805,1744131144135,-500.0,0.00030958,2]
[357536806,1744131144145,-260.22237982,0.00030958,2]
[357536807,1744131144154,-500.0,0.00030958,2]
[357536808,1744131144163,-500.0,0.00030958,2]
[357536809,1744131144173,-1509.4,0.00030958,2]
[357536810,1744131144185,-768.18,0.00030958,2]
[357536811,1744131144195,-500.0,0.00030958,2]
[357536812,1744131144204,-734.29,0.00030958,2]
[357536813,1744131144213,-500.0,0.00030958,2]
[357536814,1744131144223,-500.0,0.00030958,2]
[357536815,1744131144233,-707.17,0.00030958,2]
[357536816,1744131144243,-319.43987799,0.00030958,2]
[357536817,1744131144253,-500.0,0.00030958,2]
[357536818,1744131144262,-509.41,0.00030958,2]
[357536819,1744131144272,-500.0,0.00030958,2]
[357536820,1744131144281,-500.0,0.00030958,2]
[357536821,1744131144290,-1220.84,0.00030958,2]